bitfinex/quotes_BTCUSD_20250922
["timestamp","ask_amount","ask_price","bid_price","bid_amount"]
[1758519394931,0.57167519,114650.0,114640.0,0.20264917]
[1758519395152,0.83504293,114650.0,114640.0,0.20264917]
[1758519395333,0.85942293,114650.0,114640.0,0.20264917]
[1758519396860,0.86010293,114650.0,114640.0,0.02496]
[1758519397085,0.86010293,114650.0,114630.0,0.47199439]
[1758519397308,0.26336774,114640.0,114630.0,0.55726406]
[1758519397962,0.26336774,114640.0,114630.0,0.55925406]
[1758519398653,0.85942293,114650.0,114640.0,0.17445917]
[1758519398871,0.85810293,114650.0,114640.0,0.17445917]
[1758519399132,0.85610293,114650.0,114640.0,0.17445917]
[1758519400054,0.85810293,114650.0,114640.0,0.17445917]
[1758519400463,0.85810293,114650.0,114640.0,0.17644917]
[1758519401426,0.86010293,114650.0,114640.0,0.17644917]
[1758519401843,0.86010293,114650.0,114640.0,0.17445917]
[1758519403049,0.86010293,114650.0,114640.0,0.17644917]
[1758519403296,0.86010293,114650.0,114640.0,0.17948917]
[1758519403909,0.58742293,114650.0,114640.0,0.17948917]
[1758519404140,0.85950293,114650.0,114640.0,0.17948917]
[1758519404353,0.59613519,114650.0,114640.0,0.17948917]
[1758519404497,0.85950293,114650.0,114640.0,0.20426917]
[1758519407628,0.86018293,114650.0,114640.0,0.19923917]
[1758519407839,0.86018293,114650.0,114640.0,0.17445917]
[1758519408057,0.86018293,114650.0,114640.0,0.17644917]
[1758519409610,0.85950293,114650.0,114640.0,0.17948917]
[1758519411908,0.86020293,114650.0,114640.0,0.17948917]
[1758519415523,0.58744293,114650.0,114640.0,0.17948917]
[1758519415723,0.59675519,114650.0,114640.0,0.17948917]
[1758519415899,0.86012293,114650.0,114640.0,0.17948917]
[1758519419694,0.58744293,114650.0,114640.0,0.17948917]
[1758519419889,0.86012293,114650.0,114640.0,0.17948917]
[1758519420094,0.12525124,114650.0,114640.0,0.36171016]
[1758519420407,0.12525124,114650.0,114640.0,0.39186206]
[1758519420755,0.39793124,114650.0,114640.0,0.39186206]
[1758519421774,0.12525124,114650.0,114640.0,0.39186206]
[1758519421988,0.39793124,114650.0,114640.0,0.39186206]
[1758519423116,0.39793124,114650.0,114640.0,0.39076206]
[1758519424245,0.39793124,114650.0,114640.0,0.39953656]
[1758519424646,0.39793124,114650.0,114640.0,0.39076206]
[1758519425120,0.39793124,114650.0,114640.0,0.45594838]
[1758519425758,0.39793124,114650.0,114640.0,0.72564838]
[1758519425959,0.12525124,114650.0,114640.0,0.72564838]
[1758519426163,0.66129898,114650.0,114640.0,0.72564838]
[1758519426564,0.39793124,114650.0,114640.0,0.72564838]
[1758519428160,0.17445917,114640.0,114620.0,0.45586348]
[1758519428376,0.27264,114630.0,114620.0,0.56471315]
[1758519428576,0.27264,114630.0,114620.0,0.56687315]
[1758519428577,0.53600774,114630.0,114620.0,0.56687315]
[1758519428976,0.5622404,114630.0,114620.0,0.56687315]
[1758519429452,0.29887266,114630.0,114620.0,0.56887315]
[1758519429843,0.29887266,114630.0,114620.0,0.56687315]
[1758519430050,0.29887266,114630.0,114620.0,0.57187315]
[1758519430892,0.29887266,114630.0,114620.0,0.57287315]
[1758519431733,0.29887266,114630.0,114620.0,0.30317315]
[1758519433163,0.02623266,114630.0,114620.0,0.30317315]
[1758519433396,0.29887266,114630.0,114620.0,0.30317315]
[1758519437703,0.29887266,114630.0,114620.0,0.54418315]
[1758519437704,0.49880705,114630.0,114620.0,0.54418315]
[1758519438122,0.76217479,114630.0,114620.0,0.54418315]
[1758519438778,0.59355705,114630.0,114620.0,0.54418315]
[1758519438987,0.6813404,114630.0,114620.0,0.57316315]
[1758519439200,0.41797266,114630.0,114620.0,0.57316315]
[1758519439412,0.39319266,114630.0,114620.0,0.57316315]
[1758519439634,0.12055266,114630.0,114620.0,0.57316315]
[1758519440066,0.39319266,114630.0,114620.0,0.57316315]
[1758519441455,0.39323266,114630.0,114620.0,0.57316315]
[1758519442560,0.39323266,114630.0,114620.0,0.65527446]
[1758519442774,0.39343266,114630.0,114620.0,0.65527446]
[1758519444887,0.12055266,114630.0,114620.0,0.65527446]
[1758519445069,0.39351266,114630.0,114620.0,0.65527446]
[1758519447648,0.6568804,114630.0,114620.0,0.65527446]
[1758519447861,0.39351266,114630.0,114620.0,0.57316315]
[1758519448084,0.6568804,114630.0,114620.0,0.57316315]
[1758519448296,0.5625604,114630.0,114620.0,0.57316315]
[1758519448632,0.56261106,114630.0,114620.0,0.57316315]
[1758519449811,0.58567106,114630.0,114620.0,0.57316315]
[1758519449991,0.58635106,114630.0,114620.0,0.57316315]
[1758519450586,0.58635106,114630.0,114620.0,0.54418315]
[1758519451005,0.58635106,114630.0,114620.0,0.27448315]
[1758519451225,0.32293266,114630.0,114620.0,0.27448315]
[1758519451437,0.58635106,114630.0,114620.0,0.27448315]
[1758519453607,0.58678106,114630.0,114620.0,0.27448315]
[1758519453798,0.58635106,114630.0,114620.0,0.27448315]
[1758519456033,0.58678106,114630.0,114620.0,0.27448315]
[1758519456291,0.58635106,114630.0,114620.0,0.27448315]
[1758519457005,0.58655106,114630.0,114620.0,0.27651315]
[1758519457415,0.58655106,114630.0,114620.0,0.27946495]
[1758519458232,0.58655106,114630.0,114620.0,0.27631495]
[1758519458653,0.76102545,114630.0,114620.0,0.27631495]
[1758519458858,0.76102545,114630.0,114620.0,0.27428495]
[1758519459407,0.49760705,114630.0,114620.0,0.27428495]
[1758519459606,0.76102545,114630.0,114620.0,0.27428495]
[1758519459837,0.76102545,114630.0,114620.0,0.27631495]
[1758519460181,0.76102545,114630.0,114620.0,0.27946495]
[1758519463399,0.49692705,114630.0,114620.0,0.27946495]
[1758519463607,0.76034545,114630.0,114620.0,0.30306495]
[1758519463815,0.04929266,114630.0,114620.0,0.35816644]
[1758519464030,0.56269106,114630.0,114620.0,0.35816644]
[1758519464438,0.28965106,114630.0,114620.0,0.35816644]
[1758519464636,0.56277106,114630.0,114620.0,0.35816644]
[1758519464848,0.28965106,114630.0,114620.0,0.30306495]
[1758519465060,0.56277106,114630.0,114620.0,0.30306495]
[1758519467860,0.29931266,114630.0,114620.0,0.30306495]
[1758519468070,0.56273106,114630.0,114620.0,0.30306495]
[1758519468487,0.02623266,114630.0,114620.0,0.30306495]
[1758519468746,0.56269106,114630.0,114620.0,0.30306495]
[1758519470824,0.56269106,114630.0,114620.0,0.35816644]
[1758519471709,0.56269106,114630.0,114620.0,0.30306495]
[1758519472704,0.56269106,114630.0,114620.0,0.28610495]
[1758519473126,0.56269106,114630.0,114620.0,0.29482943]
[1758519475818,0.74716545,114630.0,114620.0,0.30326376]
[1758519476029,0.77090545,114630.0,114620.0,0.27448376]
[1758519476461,1.03432385,114630.0,114620.0,0.27448376]
[1758519477242,0.77090545,114630.0,114620.0,0.27448376]
[1758519477454,0.32271106,114630.0,114620.0,0.30428376]
[1758519477660,0.59583106,114630.0,114620.0,0.30428376]
[1758519477920,0.32271106,114630.0,114620.0,0.30428376]
[1758519478129,0.57285106,114630.0,114620.0,0.35950714]
[1758519478717,0.57285106,114630.0,114620.0,0.30428376]
[1758519483442,0.59679106,114630.0,114620.0,0.30428376]
[1758519485521,0.32359106,114630.0,114620.0,0.30428376]
[1758519485728,0.59679106,114630.0,114620.0,2.29428376]
[1758519488461,0.59747106,114630.0,114620.0,2.26649376]
[1758519489098,0.77194545,114630.0,114620.0,2.26448376]
[1758519492038,0.77194545,114630.0,114620.0,2.26649376]
[1758519492263,0.77194545,114630.0,114620.0,2.26448376]
[1758519493676,0.77126545,114630.0,114620.0,2.29252376]
[1758519494127,0.77126545,114630.0,114620.0,2.26966376]
[1758519494768,0.77126545,114630.0,114620.0,2.35493343]
[1758519496196,0.77126545,114630.0,114620.0,2.37779343]
[1758519496961,0.59679106,114630.0,114620.0,2.37779343]
[1758519497518,0.59679106,114630.0,114620.0,2.29252376]
[1758519500213,0.57285106,114630.0,114620.0,2.29252376]
[1758519500662,0.57273106,114630.0,114620.0,2.29252376]
[1758519501609,0.57269106,114630.0,114620.0,2.29252376]
[1758519508723,0.57271947,114630.0,114620.0,2.29252376]
[1758519510494,0.57271947,114630.0,114620.0,2.37779343]
[1758519510697,0.66707947,114630.0,114620.0,2.37779343]
[1758519512172,0.66707947,114630.0,114620.0,2.29252376]
[1758519514791,0.66707947,114630.0,114620.0,2.56222376]
[1758519514792,0.40363266,114630.0,114620.0,2.56222376]
[1758519514967,0.66707947,114630.0,114620.0,2.56222376]
[1758519520614,0.84155386,114630.0,114620.0,2.56222376]
[1758519520857,0.60275705,114630.0,114620.0,2.59237566]
[1758519521080,0.86620386,114630.0,114620.0,2.59237566]
[1758519525359,0.86688386,114630.0,114620.0,2.56951566]
[1758519525584,0.86620386,114630.0,114620.0,2.56951566]
[1758519526200,0.86688386,114630.0,114620.0,2.56634566]
[1758519526888,0.86688386,114630.0,114620.0,2.56931566]
[1758519527086,1.13033067,114630.0,114620.0,2.56931566]
[1758519527932,0.60275705,114630.0,114620.0,2.56931566]
[1758519528271,0.86620386,114630.0,114620.0,2.56931566]
[1758519528491,0.86688386,114630.0,114620.0,2.56634566]
[1758519529137,1.13033067,114630.0,114620.0,2.56931566]
[1758519529332,1.12965067,114630.0,114620.0,2.59418566]
[1758519530389,1.12965067,114630.0,114620.0,2.41969605]
[1758519531402,1.13033067,114630.0,114620.0,1.996]
[1758519531616,1.13076067,114630.0,114620.0,1.996]
[1758519531822,1.13068067,114630.0,114620.0,1.996]
[1758519532083,1.13682199,114630.0,114620.0,1.996]
[1758519532282,0.85772067,114630.0,114620.0,1.996]
[1758519532512,1.13068067,114630.0,114620.0,1.996]
[1758519532714,1.13025067,114630.0,114620.0,1.996]
[1758519533122,0.85729067,114630.0,114620.0,1.996]
[1758519533347,1.13025067,114630.0,114620.0,1.996]
[1758519533736,0.85729067,114630.0,114620.0,1.996]
[1758519533981,1.13025067,114630.0,114620.0,1.996]
[1758519535515,0.85729067,114630.0,114620.0,1.996]
[1758519535720,1.13021067,114630.0,114620.0,1.996]
[1758519536760,0.85729067,114630.0,114620.0,1.996]
[1758519536960,1.13017067,114630.0,114620.0,1.996]
[1758519538772,0.15592266,114630.0,114620.0,2.17247961]
[1758519539006,0.66687947,114630.0,114620.0,2.28376928]
[1758519539646,0.39403947,114630.0,114620.0,2.28376928]
[1758519539856,0.66687947,114630.0,114620.0,2.28376928]
[1758519540499,0.39403947,114630.0,114620.0,2.28376928]
[1758519540744,0.66687947,114630.0,114620.0,2.28376928]
[1758519540985,0.39403947,114630.0,114620.0,2.28376928]
[1758519541186,0.66743947,114630.0,114620.0,2.28376928]
[1758519542336,0.39403947,114630.0,114620.0,2.28376928]
[1758519542586,0.66739947,114630.0,114620.0,2.28376928]
[1758519542839,0.66735947,114630.0,114620.0,2.28376928]
[1758519543325,0.84183386,114630.0,114620.0,2.28376928]
[1758519544407,0.84183386,114630.0,114620.0,2.55346928]
[1758519544841,1.10528067,114630.0,114620.0,2.55346928]
[1758519548799,0.39403947,114630.0,114620.0,2.55346928]
[1758519549010,0.93076628,114630.0,114620.0,2.55346928]
[1758519549475,1.10524067,114630.0,114620.0,2.55346928]
[1758519549678,0.84179386,114630.0,114620.0,2.55346928]
[1758519550103,1.10524067,114630.0,114620.0,2.55346928]
[1758519551160,0.93076628,114630.0,114620.0,2.55346928]
[1758519551546,0.39403947,114630.0,114620.0,2.55346928]
[1758519551751,0.66723947,114630.0,114620.0,2.55346928]
[1758519552545,0.39403947,114630.0,114620.0,2.55346928]
[1758519552764,0.66735947,114630.0,114620.0,2.55346928]
[1758519555550,0.39403947,114630.0,114620.0,2.55346928]
[1758519555751,0.40387266,114630.0,114620.0,2.55346928]
[1758519555959,0.40387266,114630.0,114620.0,2.66889085]
[1758519556159,0.30955266,114630.0,114620.0,2.39919085]
[1758519557359,0.30955266,114630.0,114620.0,2.42542147]
[1758519559271,0.01,114630.0,114620.0,2.69512147]
[1758519559485,0.28352,114630.0,114620.0,2.69512147]
[1758519561539,0.28356,114630.0,114620.0,2.96872147]
[1758519561955,0.01,114630.0,114620.0,2.96872147]
[1758519562590,0.01,114630.0,114620.0,2.69512147]
[1758519562813,0.01,114630.0,114620.0,2.96868147]
[1758519564347,0.01,114630.0,114620.0,2.96864147]
[1758519564549,0.01,114630.0,114620.0,2.69512147]
[1758519564751,0.01,114630.0,114620.0,2.96860147]
[1758519566363,0.01,114630.0,114620.0,2.69512147]
[1758519566568,0.01,114630.0,114620.0,2.96860147]
[1758519567708,0.01,114630.0,114620.0,2.69512147]
[1758519567940,0.01,114630.0,114620.0,2.96860147]
[1758519568349,0.01,114630.0,114620.0,2.69512147]
[1758519568752,0.01,114630.0,114620.0,2.96856147]
[1758519570956,0.01,114630.0,114620.0,2.69512147]
[1758519571236,0.01,114630.0,114620.0,2.96856147]
[1758519571584,0.01,114630.0,114620.0,2.69512147]
[1758519571947,0.01,114630.0,114620.0,2.96860147]
[1758519573297,0.01,114630.0,114620.0,2.96856147]
[1758519575813,0.01,114630.0,114620.0,2.69512147]
[1758519575995,0.27405361,114630.0,114620.0,2.66711147]
[1758519576348,0.29708361,114630.0,114620.0,2.66711147]
[1758519576752,0.29708361,114630.0,114620.0,2.66908147]
[1758519576909,0.57044361,114630.0,114620.0,2.67217147]
[1758519577119,0.57044361,114630.0,114620.0,2.69544147]
[1758519577324,0.56976361,114630.0,114620.0,2.69544147]
[1758519578297,0.57044361,114630.0,114620.0,2.66908147]
[1758519578836,0.57044361,114630.0,114620.0,2.67217147]
[1758519579131,0.29640361,114630.0,114620.0,2.69544147]
[1758519579339,0.56976361,114630.0,114620.0,2.69544147]
[1758519580492,0.56976361,114630.0,114620.0,2.42574147]
[1758519581540,0.30639,114630.0,114620.0,2.42574147]
[1758519581689,0.56976361,114630.0,114620.0,2.42574147]
[1758519582934,0.30639,114630.0,114620.0,2.42574147]
[1758519583169,0.56976361,114630.0,114620.0,2.42574147]
[1758519583573,0.54673361,114630.0,114620.0,2.42574147]
[1758519583923,0.28336,114630.0,114620.0,2.42574147]
[1758519584154,0.54661361,114630.0,114620.0,2.69898147]
[1758519584402,0.28324,114630.0,114620.0,2.69898147]
[1758519584536,0.54661361,114630.0,114620.0,2.69898147]
[1758519585920,0.54661361,114630.0,114620.0,2.96864147]
[1758519587285,0.54661361,114630.0,114620.0,2.67217147]
[1758519587452,0.57032361,114630.0,114620.0,2.55561118]
[1758519587658,0.59655529,114630.0,114620.0,2.55561118]
[1758519593738,0.32331529,114630.0,114620.0,2.55561118]
[1758519593949,0.59639529,114630.0,114620.0,2.55758118]
[1758519594619,0.59639529,114630.0,114620.0,2.56067118]
[1758519595880,0.59639529,114630.0,114620.0,2.64594085]
[1758519596079,0.59639529,114630.0,114620.0,2.66921085]
[1758519597730,0.57268529,114630.0,114620.0,2.39983085]
[1758519598108,0.59519529,114630.0,114620.0,2.39983085]
[1758519601857,1.03372329,114630.0,114620.0,1.996]
[1758519602057,1.03372329,114630.0,114620.0,2.17048961]
[1758519602265,0.77034968,114630.0,114620.0,2.17048961]
[1758519604462,0.77034968,114630.0,114620.0,1.996]
[1758519604659,0.77034968,114630.0,114620.0,2.17048961]
[1758519605681,0.86466968,114630.0,114620.0,2.17048961]
[1758519606140,0.60129607,114630.0,114620.0,2.17048961]
[1758519606360,0.86466968,114630.0,114620.0,2.17048961]
[1758519606924,0.86446968,114630.0,114620.0,2.17048961]
[1758519608083,0.59158968,114630.0,114620.0,2.17048961]
[1758519608343,0.86446968,114630.0,114620.0,2.17551961]
[1758519609200,0.86446968,114630.0,114620.0,2.17244961]
[1758519609833,0.86446968,114630.0,114620.0,1.996]
[1758519610196,1.12784329,114630.0,114620.0,1.996]
[1758519612502,0.60109607,114630.0,114620.0,1.996]
[1758519612679,1.12784329,114630.0,114620.0,1.996]
[1758519614996,1.15095882,114630.0,114620.0,1.996]
[1758519615213,1.45095882,114630.0,114620.0,1.996]
[1758519615421,1.45709058,114630.0,114620.0,1.996]
[1758519615833,1.18421058,114630.0,114620.0,1.996]
[1758519616040,1.45709058,114630.0,114620.0,1.996]
[1758519616237,0.65703336,114630.0,114620.0,1.996]
[1758519616447,0.6509016,114630.0,114620.0,1.996]
[1758519616607,1.12816329,114630.0,114620.0,1.996]
[1758519618957,0.60137607,114630.0,114620.0,1.996]
[1758519619158,0.85496329,114630.0,114620.0,1.996]
[1758519619367,0.84155968,114630.0,114620.0,2.19840961]
[1758519620650,0.84155968,114630.0,114620.0,2.02392]
[1758519620859,0.59569875,114630.0,114620.0,2.02392]
[1758519621078,0.62061875,114630.0,114620.0,2.02392]
[1758519621787,0.86647968,114630.0,114620.0,2.02392]
[1758519624203,0.60314607,114630.0,114620.0,2.02392]
[1758519624377,0.86651968,114630.0,114620.0,2.02392]
[1758519625800,1.12989329,114630.0,114620.0,2.02392]
[1758519627159,0.86651968,114630.0,114620.0,2.02392]
[1758519627282,0.95178935,114630.0,114620.0,2.02392]
[1758519627688,0.86651968,114630.0,114620.0,2.02392]
[1758519629220,0.86651968,114630.0,114620.0,2.19840961]
[1758519629454,0.60314607,114630.0,114620.0,2.19840961]
[1758519629689,0.13055168,114630.0,114620.0,2.19912961]
[1758519629921,0.13055168,114630.0,114620.0,2.31455118]
[1758519630161,0.13055168,114630.0,114620.0,2.39982085]
[1758519630390,0.40383168,114630.0,114620.0,2.39982085]
[1758519641207,0.40383168,114630.0,114620.0,2.31455118]
[1758519648751,0.30951168,114630.0,114620.0,2.31455118]
[1758519650636,0.03623168,114630.0,114620.0,2.31455118]
[1758519650844,0.30935168,114630.0,114620.0,2.31455118]
[1758519651259,0.03623168,114630.0,114620.0,2.31455118]
[1758519651480,0.30931168,114630.0,114620.0,2.39982085]
[1758519652296,0.03623168,114630.0,114620.0,2.39982085]
[1758519652503,0.30931168,114630.0,114620.0,2.39982085]
[1758519652698,0.28308,114630.0,114620.0,2.39982085]
[1758519657046,0.01,114630.0,114620.0,2.39982085]
[1758519657290,0.28296,114630.0,114620.0,2.39982085]
[1758519657502,0.01,114630.0,114620.0,2.39982085]
[1758519657729,0.28296,114630.0,114620.0,2.39982085]
[1758519659128,0.01,114630.0,114620.0,2.39982085]
[1758519659270,0.28292,114630.0,114620.0,2.39982085]
[1758519659858,0.01,114630.0,114620.0,2.39982085]
[1758519660047,0.28292,114630.0,114620.0,2.39982085]
[1758519662505,0.01,114630.0,114620.0,2.39982085]
[1758519662829,0.28292,114630.0,114620.0,2.39982085]
[1758519663026,0.28292,114630.0,114620.0,2.66952085]
[1758519666663,0.01,114630.0,114620.0,2.66952085]
[1758519666851,0.28288,114630.0,114620.0,2.66952085]
[1758519669755,0.54625344,114630.0,114620.0,2.66952085]
[1758519670796,0.28288,114630.0,114620.0,2.66952085]
[1758519675948,0.74579783,114630.0,114620.0,2.38112157]
[1758519676158,1.00960127,114630.0,114620.0,2.35096967]
[1758519676401,0.74622783,114630.0,114620.0,2.35096967]
[1758519677024,0.74579783,114630.0,114620.0,2.35096967]
[1758519677901,0.48242439,114630.0,114620.0,2.35096967]
[1758519678117,0.74579783,114630.0,114620.0,2.35096967]
[1758519680553,0.47291783,114630.0,114620.0,2.35096967]
[1758519680697,0.74579783,114630.0,114620.0,2.08126967]
[1758519682684,0.47291783,114630.0,114620.0,2.08126967]
[1758519682895,0.47223783,114630.0,114620.0,2.26091928]
[1758519683223,0.74579783,114630.0,114620.0,2.08642967]
[1758519683434,0.47291783,114630.0,114620.0,2.08642967]
[1758519683622,0.74579783,114630.0,114620.0,2.08642967]
[1758519684247,0.74511783,114630.0,114620.0,2.26091928]
[1758519684470,0.74511783,114630.0,114620.0,2.28450928]
[1758519685325,0.47223783,114630.0,114620.0,2.28450928]
[1758519685538,0.74511783,114630.0,114620.0,2.28450928]
[1758519686236,0.72072783,114630.0,114620.0,2.28450928]
[1758519686450,0.44784783,114630.0,114620.0,2.28450928]
[1758519686662,0.72072783,114630.0,114620.0,2.28450928]
[1758519686866,0.72072783,114630.0,114620.0,2.55420928]
[1758519687780,0.74349783,114630.0,114620.0,2.55420928]
[1758519689883,0.83781783,114630.0,114620.0,2.55420928]
[1758519690740,0.83788574,114630.0,114620.0,2.55420928]
[1758519691602,0.39053135,114630.0,114620.0,2.55420928]
[1758519691804,0.83788574,114630.0,114620.0,2.55420928]
[1758519692011,0.81511574,114630.0,114620.0,2.55420928]
[1758519693058,0.54223574,114630.0,114620.0,2.55420928]
[1758519693247,0.81511574,114630.0,114620.0,2.55420928]
[1758519693776,0.36776135,114630.0,114620.0,2.55420928]
[1758519693997,0.64064135,114630.0,114620.0,2.55420928]
[1758519694188,0.83788574,114630.0,114620.0,2.55420928]
[1758519694866,0.57444439,114630.0,114620.0,2.55420928]
[1758519695076,0.81511574,114630.0,114620.0,2.55420928]
[1758519696333,0.72079574,114630.0,114620.0,2.55420928]
[1758519697630,0.44791574,114630.0,114620.0,2.55420928]
[1758519697917,0.72091574,114630.0,114620.0,2.55420928]
[1758519700902,0.83800574,114630.0,114620.0,2.55420928]
[1758519709018,0.74368574,114630.0,114620.0,2.55420928]
[1758519709333,0.72091574,114630.0,114620.0,2.55420928]
[1758519713837,0.74714964,114630.0,114620.0,2.55420928]
[1758519715070,0.57267525,114630.0,114620.0,2.55420928]
[1758519715423,0.57255525,114630.0,114620.0,2.55420928]
[1758519715602,0.29967525,114630.0,114620.0,2.55420928]
[1758519715850,0.57255525,114630.0,114620.0,2.55420928]
[1758519722497,0.74702964,114630.0,114620.0,2.55420928]
[1758519722854,0.48358829,114630.0,114620.0,2.55420928]
[1758519723042,0.74702964,114630.0,114620.0,2.55420928]
[1758519723463,0.57255525,114630.0,114620.0,2.55420928]
[1758519724641,0.74702964,114630.0,114620.0,2.55420928]
[1758519725843,0.77183964,114630.0,114620.0,2.55420928]
[1758519726479,0.74702964,114630.0,114620.0,2.55420928]
[1758519733445,0.57255525,114630.0,114620.0,2.55420928]
[1758519734924,0.57255525,114630.0,114620.0,2.55420928]
[1758519735161,0.0362339,114630.0,114620.0,2.55420928]
[1758519735369,0.57255525,114630.0,114620.0,2.55420928]
[1758519738724,0.74702964,114630.0,114620.0,2.55420928]
[1758519740463,0.74711277,114630.0,114620.0,2.55420928]
[1758519741481,0.74702964,114630.0,114620.0,2.55412615]
[1758519744407,0.29967525,114630.0,114620.0,2.55412615]
[1758519744603,0.57251525,114630.0,114620.0,2.55412615]
[1758519747037,1.01111099,114630.0,114620.0,2.08118654]
[1758519747238,1.03585099,114630.0,114620.0,2.08118654]
[1758519747647,1.03585099,114630.0,114620.0,1.99591687]
[1758519748248,1.03585099,114630.0,114620.0,1.99802687]
[1758519748447,0.50828829,114630.0,114620.0,2.19797648]
[1758519748637,0.77172964,114630.0,114620.0,2.19797648]
[1758519748842,1.03517099,114630.0,114620.0,2.19797648]
[1758519749049,1.03628099,114630.0,114620.0,1.99591687]
[1758519749661,1.04241948,114630.0,114620.0,1.99591687]
[1758519752640,1.04264596,114630.0,114620.0,1.99591687]
[1758519754343,1.03650747,114630.0,114620.0,1.99591687]
[1758519755859,1.03607747,114630.0,114620.0,1.99591687]
[1758519756293,0.76323747,114630.0,114620.0,1.99591687]
[1758519756495,1.12134714,114630.0,114620.0,1.99591687]
[1758519757731,1.12134714,114630.0,114620.0,1.99802687]
[1758519757974,0.32071796,114630.0,114620.0,2.02348687]
[1758519758178,1.01065747,114630.0,114620.0,2.02348687]
[1758519758393,0.73781747,114630.0,114620.0,2.02348687]
[1758519758597,1.03539747,114630.0,114620.0,2.02348687]
[1758519759346,0.76255747,114630.0,114620.0,2.02348687]
[1758519759579,1.01065747,114630.0,114620.0,2.02348687]
[1758519759788,1.09592714,114630.0,114620.0,2.02348687]
[1758519760464,1.12134714,114630.0,114620.0,1.99591687]
[1758519763344,0.59423796,114630.0,114620.0,1.99802687]
[1758519763545,1.12134714,114630.0,114620.0,1.99591687]
[1758519767276,0.84850714,114630.0,114620.0,1.99802687]
[1758519767475,1.12162714,114630.0,114620.0,1.99802687]
[1758519769712,0.59447796,114630.0,114620.0,1.99802687]
[1758519769943,1.12086714,114630.0,114620.0,2.02348687]
[1758519770347,0.82308714,114630.0,114620.0,2.02348687]
[1758519770551,1.09652714,114630.0,114620.0,2.02348687]
[1758519771527,1.12126714,114630.0,114620.0,2.02348687]
[1758519771928,1.12126714,114630.0,114620.0,2.00097687]
[1758519773329,1.12126714,114630.0,114620.0,2.02348687]
[1758519773520,1.09652714,114630.0,114620.0,2.02348687]
[1758519774484,1.09652714,114630.0,114620.0,2.00097687]
[1758519774718,1.12808104,114630.0,114620.0,2.00097687]
[1758519776606,1.01727137,114630.0,114620.0,2.02348687]
[1758519782054,0.74395137,114630.0,114620.0,2.02348687]
[1758519782235,1.01755137,114630.0,114620.0,2.02348687]
[1758519783867,1.04081137,114630.0,114620.0,2.02348687]
[1758519785843,1.13517137,114630.0,114620.0,2.00097687]
[1758519786046,0.94684104,114630.0,114620.0,2.00097687]
[1758519786305,0.92358104,114630.0,114620.0,2.00097687]
[1758519786582,1.19706104,114630.0,114620.0,2.02401687]
[1758519788776,1.11179137,114630.0,114620.0,2.02401687]
[1758519789182,1.11187137,114630.0,114620.0,2.02401687]
[1758519799061,0.84831678,114630.0,114620.0,2.02401687]
[1758519799314,0.31120219,114630.0,114620.0,2.19850648]
[1758519799518,0.57846829,114630.0,114620.0,2.02401687]
[1758519799946,0.57846829,114630.0,114620.0,2.19850648]
[1758519800270,0.84202288,114630.0,114620.0,2.19850648]
[1758519802113,0.4039139,114630.0,114620.0,2.28377615]
[1758519802599,0.4039139,114630.0,114620.0,2.36904582]
[1758519803266,0.4039139,114630.0,114620.0,2.28377615]
[1758519806554,0.4037939,114630.0,114620.0,2.28377615]
[1758519808305,0.4037939,114630.0,114620.0,2.55347615]
[1758519815158,0.3937939,114630.0,114620.0,2.55347615]
[1758519818415,0.65719743,114630.0,114620.0,2.55347615]
[1758519818626,0.3937939,114630.0,114620.0,2.55347615]
[1758519819401,0.65719743,114630.0,114620.0,2.55347615]
[1758519821208,0.3937939,114630.0,114620.0,2.63874582]
[1758519821406,0.38399743,114630.0,114620.0,2.63874582]
[1758519821604,0.65695743,114630.0,114620.0,2.63874582]
[1758519821817,0.65695743,114630.0,114620.0,2.55347615]
[1758519822023,0.65691743,114630.0,114620.0,2.55347615]
[1758519822838,0.65691743,114630.0,114620.0,1.99591687]
[1758519822839,1.69930888,114630.0,114620.0,1.99591687]
[1758519823108,2.14725122,114630.0,114620.0,1.99591687]
[1758519823316,2.23252089,114630.0,114620.0,1.99591687]
[1758519823529,1.93617173,114630.0,114620.0,1.99591687]
[1758519823764,2.20913173,114630.0,114620.0,1.99591687]
[1758519824141,2.20913173,114630.0,114620.0,1.991]
[1758519824490,2.21713173,114630.0,114620.0,1.991]
[1758519824906,1.91773159,114630.0,114620.0,1.99]
[1758519825112,2.19065159,114630.0,114620.0,1.99]
[1758519825315,2.19477159,114630.0,114620.0,1.99]
[1758519826656,1.93136806,114630.0,114620.0,1.99]
[1758519830097,1.93636806,114630.0,114620.0,1.99]
[1758519831763,1.93632806,114630.0,114620.0,1.99]
[1758519831984,1.93132806,114630.0,114620.0,1.985]
[1758519832414,1.93128806,114630.0,114620.0,1.985]
[1758519835113,1.65832806,114630.0,114620.0,1.985]
[1758519835359,1.93085806,114630.0,114620.0,1.985]
[1758519835561,1.65789806,114630.0,114620.0,1.985]
[1758519835989,1.93089806,114630.0,114620.0,1.985]
[1758519837664,1.48000887,114630.0,114620.0,2.01501]
[1758519837876,1.22616181,114630.0,114620.0,2.01501]
[1758519838082,1.48343182,114630.0,114620.0,2.01501]
[1758519838716,1.74283535,114630.0,114620.0,2.01501]
[1758519838931,1.47287535,114630.0,114620.0,2.01501]
[1758519839137,1.83110502,114630.0,114620.0,2.01501]
[1758519839583,1.82810502,114630.0,114620.0,2.01501]
[1758519839800,1.82210502,114630.0,114620.0,2.01501]
[1758519840010,1.82410502,114630.0,114620.0,2.01501]
[1758519840206,1.84776502,114630.0,114620.0,2.01501]
[1758519840637,2.97137866,114630.0,114620.0,1.985]
[1758519840847,2.23448984,114630.0,114620.0,1.985]
[1758519841727,2.22051137,114630.0,114620.0,1.985]
[1758519842150,2.22651137,114630.0,114620.0,1.985]
[1758519842557,2.24019165,114630.0,114620.0,1.985]
[1758519842710,2.23819165,114630.0,114620.0,1.985]
[1758519843144,2.24919165,114630.0,114620.0,1.985]
[1758519844867,2.24919066,114630.0,114620.0,1.985]
[1758519847398,2.26551068,114630.0,114620.0,1.985]
[1758519849317,2.27367401,114630.0,114620.0,1.985]
[1758519854207,2.25999373,114630.0,114620.0,1.985]
[1758519854555,1.98703373,114630.0,114620.0,1.985]
[1758519854783,2.25968373,114630.0,114620.0,1.985]
[1758519854980,2.23324359,114630.0,114620.0,1.985]
[1758519855759,1.96016359,114630.0,114620.0,1.985]
[1758519856400,2.23320359,114630.0,114620.0,1.99007]
[1758519856632,2.24688437,114630.0,114620.0,2.01358]
[1758519857050,1.97384437,114630.0,114620.0,2.01358]
[1758519857273,1.94950437,114630.0,114620.0,2.01358]
[1758519857500,2.22254437,114630.0,114620.0,2.01358]
[1758519857739,2.22250437,114630.0,114620.0,2.01358]
[1758519858431,2.24601437,114630.0,114620.0,2.01358]
[1758519858646,2.24001437,114630.0,114620.0,2.01358]
[1758519859089,1.96001437,114630.0,114620.0,2.01358]
[1758519859341,1.96001437,114630.0,114620.0,1.985]